bitfinex-derivatives/quotes_SOLF0:USTF0_20250415
["timestamp","ask_amount","ask_price","bid_price","bid_amount"]
[1744716608569,0.05562726,132.29,132.27,0.05268696]
[1744716609062,7.61552726,132.29,132.27,0.05268696]
[1744716609865,0.05562726,132.29,132.27,4.71198441]
[1744716610268,0.05562726,132.29,132.28,7.5603]
[1744716610465,573.42,132.36,132.28,33.41929745]
[1744716610669,4.65929745,132.32,132.28,33.41929745]
[1744716610869,7.5601,132.29,132.26,4.65929745]
[1744716611169,7.5601,132.29,132.25,28.76]
[1744716611669,0.05005768,132.28,132.26,0.05231545]
[1744716612669,7.61055768,132.28,132.26,0.05231545]
[1744716613570,7.61055768,132.28,132.26,7.61371545]
[1744716613969,7.61055768,132.28,132.26,0.05231545]
[1744716615673,7.61055768,132.28,132.26,7.61361545]
[1744716617274,0.05005768,132.28,132.27,7.5608]
[1744716620682,0.05005768,132.28,132.26,7.33213628]
[1744716620683,0.05005768,132.28,132.26,7.61341545]
[1744716620877,0.05005768,132.28,132.26,0.05231545]
[1744716621680,7.61065768,132.28,132.26,0.05231545]
[1744716622075,0.05005768,132.28,132.26,0.05231545]
[1744716622279,7.5608,132.27,132.26,0.05231545]
[1744716624881,0.05005768,132.28,132.26,0.05231545]
[1744716625483,0.05005768,132.28,132.27,7.5608]
[1744716628889,0.05005768,132.28,132.26,7.61351545]
[1744716629292,0.05005768,132.28,132.26,0.05231545]
[1744716629687,0.05005768,132.28,132.27,7.5608]
[1744716629989,573.4,132.36,132.26,9.36153628]
[1744716630189,7.5572,132.34,132.31,7.5583]
[1744716630887,7.5572,132.34,132.31,7.61562379]
[1744716631091,7.60683823,132.34,132.31,7.61562379]
[1744716631391,0.04963823,132.34,132.32,7.558]
[1744716631794,0.04963823,132.34,132.33,4.65566201]
[1744716632093,0.04963823,132.34,132.33,12.21306201]
[1744716632995,28.74,132.39,132.33,4.65566201]
[1744716633193,4.65566201,132.42,132.37,4.65566201]
[1744716633584,211.33293079,132.44,132.39,4.65566201]
[1744716633788,7.5529,132.41,132.38,4.65566201]
[1744716633992,4.65566201,132.4,132.38,0.0554435]
[1744716634291,7.5537,132.4,132.38,0.0554435]
[1744716634491,4.7068811,132.41,132.38,0.0554435]
[1744716634492,0.05121909,132.41,132.38,0.0554435]
[1744716634789,7.60421909,132.41,132.38,0.0554435]
[1744716635294,0.05121909,132.41,132.38,0.0554435]
[1744716635494,7.5538,132.4,132.38,0.0554435]
[1744716635997,7.554,132.39,132.38,0.0554435]
[1744716638798,0.05121909,132.41,132.38,28.7754435]
[1744716639097,0.05121909,132.41,132.38,0.0554435]
[1744716639291,7.554,132.39,132.38,0.0554435]
[1744716643198,7.5536,132.4,132.38,0.0554435]
[1744716643395,0.05121909,132.41,132.38,0.0554435]
[1744716643794,7.60441909,132.41,132.38,0.0554435]
[1744716644999,0.05121909,132.41,132.38,0.0554435]
[1744716646106,14.53511702,132.39,132.28,28.7]
[1744716646397,7.26755851,132.33,132.27,28.7]
[1744716647298,7.5594,132.3,132.29,0.05661137]
[1744716647505,36.02262165,132.31,132.24,28.7]
[1744716647801,7.5618,132.26,132.21,32.7183]
[1744716647995,35.96755851,132.31,132.22,7.26755851]
[1744716648201,7.5603,132.28,132.22,7.26755851]
[1744716648497,35.96755851,132.31,132.24,0.0570569]
[1744716648704,7.5606,132.28,132.24,0.0570569]
[1744716649109,7.32352055,132.29,132.24,0.0570569]
[1744716650599,7.5612,132.27,132.24,0.0570569]
[1744716651098,7.562,132.25,132.24,0.0570569]
[1744716653300,7.5637,132.22,132.19,543.88]
[1744716653501,35.98755851,132.25,132.18,28.72]
[1744716653701,28.72,132.24,132.18,28.72]
[1744716653999,28.72,132.24,132.18,36.2857]
[1744716654408,28.72,132.24,132.2,0.05156817]
[1744716654603,7.5644,132.21,132.2,0.05156817]
[1744716655004,0.05413371,132.22,132.2,0.05156817]
[1744716655204,7.61813371,132.22,132.2,0.05156817]
[1744716655607,28.72,132.29,132.2,7.31912668]
[1744716655905,7.5618,132.26,132.22,14.83085851]
[1744716656610,0.04992041,132.25,132.23,0.04832055]
[1744716657107,0.04992041,132.25,132.23,7.61132055]
[1744716658110,0.04992041,132.25,132.24,7.5626]
[1744716658309,0.04992041,132.25,132.23,0.04832055]
[1744716658606,0.04992041,132.25,132.23,7.61122055]
[1744716660213,0.04992041,132.25,132.23,7.61142055]
[1744716660416,0.04992041,132.25,132.23,0.04832055]
[1744716660912,7.5626,132.24,132.23,0.04832055]
[1744716662006,7.31747892,132.25,132.18,28.72]
[1744716662206,11.34265851,132.25,132.18,28.72]
[1744716662510,7.5639,132.22,132.18,36.286]
[1744716662712,7.5639,132.22,132.18,28.72]
[1744716663014,0.04984454,132.21,132.19,0.05132157]
[1744716663408,7.5649,132.2,132.19,0.05132157]
[1744716663713,28.7,132.2,132.12,574.9305]
[1744716663911,7.567,132.17,132.13,7.5686]
[1744716664511,28.7,132.23,132.15,7.26755851]
[1744716664715,2.0514,132.26,132.19,7.26755851]
[1744716664915,7.5609,132.27,132.23,7.26755851]
[1744716665109,0.05633824,132.24,132.23,7.26755851]
[1744716665516,28.7,132.3,132.23,7.26755851]
[1744716665811,28.7,132.3,132.22,28.7]
[1744716666007,7.5616,132.26,132.23,7.5629]
[1744716666213,7.26755851,132.29,132.22,28.7]
[1744716666717,7.61130643,132.27,132.24,0.05579808]
[1744716667013,0.05020643,132.27,132.24,0.05579808]
[1744716667214,7.562,132.25,132.24,0.05579808]
[1744716667513,0.05020643,132.27,132.24,0.05579808]
[1744716669214,28.75020643,132.27,132.24,0.05579808]
[1744716669516,7.562,132.25,132.24,0.05579808]
[1744716671118,28.75020643,132.27,132.24,0.05579808]
[1744716671415,0.05020643,132.27,132.24,0.05579808]
[1744716671616,0.05020643,132.27,132.25,7.5617]
[1744716672320,0.05020643,132.27,132.24,7.61819808]
[1744716672711,0.05020643,132.27,132.24,0.05579808]
[1744716673417,7.562,132.25,132.24,0.05579808]
[1744716674719,28.75020643,132.27,132.24,0.05579808]
[1744716675020,0.05020643,132.27,132.24,7.61829808]
[1744716675220,0.05020643,132.27,132.24,0.05579808]
[1744716675722,28.7,132.34,132.25,40.3534952]
[1744716676020,7.5575,132.33,132.29,7.5592]
[1744716676819,0.05681061,132.32,132.3,0.05505392]
[1744716678023,0.05681061,132.32,132.3,7.61385392]
[1744716678225,0.05681061,132.32,132.3,0.05505392]
[1744716678721,7.61511061,132.32,132.3,0.05505392]
[1744716680224,0.05681061,132.32,132.3,7.61415392]
[1744716681226,0.05681061,132.32,132.31,36.2586]
[1744716681925,7.61481061,132.32,132.31,28.7]
[1744716682224,0.05681061,132.32,132.3,0.05505392]
[1744716682925,7.61511061,132.32,132.3,0.05505392]
[1744716683826,0.05681061,132.32,132.3,0.05505392]
[1744716684827,7.61511061,132.32,132.3,0.05505392]
[1744716685627,7.61511061,132.32,132.3,7.61375392]
[1744716685628,0.05681061,132.32,132.3,7.61375392]
[1744716687124,0.05681061,132.32,132.31,7.5586]
[1744716688430,0.05681061,132.32,132.31,36.2586]
[1744716688627,7.556,132.36,132.34,7.5567]
[1744716688830,573.04,132.4,132.31,32.7443]
[1744716689029,573.04,132.4,132.35,7.556]
[1744716689520,7.5551,132.38,132.36,0.0507886]
[1744716689927,0.05629515,132.39,132.36,0.0507886]
[1744716690828,7.5551,132.37,132.36,0.0507886]
[1744716692440,0.05629515,132.39,132.36,0.0507886]
[1744716693340,7.5549,132.38,132.36,0.0507886]
[1744716693841,0.05629515,132.39,132.36,0.0507886]
[1744716694542,0.05629515,132.39,132.37,28.66]
[1744716694736,0.05629515,132.39,132.36,0.0507886]
[1744716695438,7.5546,132.38,132.36,0.0507886]
[1744716695836,0.05629515,132.39,132.36,0.0507886]
[1744716696542,7.5549,132.38,132.36,0.0507886]
[1744716697143,0.05629515,132.39,132.36,0.0507886]
[1744716697144,7.5551,132.37,132.36,0.0507886]
[1744716697340,0.05629515,132.39,132.36,0.0507886]
[1744716697642,7.5551,132.37,132.36,0.0507886]
[1744716699948,7.558,132.32,132.29,387.66]
[1744716700148,7.558,132.32,132.29,28.66]
[1744716700346,7.558,132.32,132.29,36.2194]
[1744716700542,11.6534952,132.35,132.26,34.7715]
[1744716700945,0.0572151,132.32,132.29,0.05755766]
[1744716701142,7.5595,132.3,132.29,0.05755766]
[1744716701643,7.5589,132.31,132.29,0.05755766]
[1744716701851,0.0572151,132.32,132.29,28.71755766]
[1744716702251,0.0572151,132.32,132.29,36.27675766]
[1744716702849,7.6156151,132.32,132.29,36.27675766]
[1744716703151,7.6156151,132.32,132.29,28.71755766]
[1744716703544,7.6156151,132.32,132.29,36.27725766]
[1744716704246,0.0572151,132.32,132.3,7.559]
[1744716705050,0.0572151,132.32,132.29,36.27695766]
[1744716705349,7.6154151,132.32,132.29,36.27695766]
[1744716707450,0.0572151,132.32,132.29,28.71755766]
[1744716707754,572.62,132.39,132.29,28.71755766]
[1744716708053,7.5554,132.37,132.34,7.5566]
[1744716708253,7.5554,132.37,132.33,28.66]
[1744716708448,28.66,132.39,132.33,28.66]
[1744716708651,2.1488,132.41,132.33,28.66]
[1744716708847,0.05367175,132.38,132.36,0.05567774]
[1744716709152,0.0496419,132.38,132.37,7.5547]
[1744716709654,0.0496419,132.38,132.36,36.26582805]
[1744716709853,0.0496419,132.38,132.36,28.71042805]
[1744716710155,7.6044419,132.38,132.36,28.71042805]
[1744716711254,0.0496419,132.38,132.36,36.26602805]
[1744716711554,0.0496419,132.38,132.36,28.71042805]
[1744716711754,0.0496419,132.38,132.37,7.5551]
[1744716712257,0.0496419,132.38,132.36,28.71042805]
[1744716712657,0.0496419,132.38,132.36,36.26582805]
[1744716713454,0.0496419,132.38,132.37,7.5551]
[1744716721062,35.92678707,132.49,132.36,35.97721512]
[1744716721257,35.92678707,132.49,132.4,7.26678707]
[1744716721461,35.92678707,132.49,132.41,28.66]
[1744716721662,35.92678707,132.49,132.43,7.5513]
[1744716721858,35.92678707,132.49,132.41,28.66]
[1744716722065,0.04948666,132.46,132.45,7.5506]
[1744716722259,180.11116878,132.5,132.44,0.05032591]
[1744716722461,0.04948666,132.47,132.44,0.05032591]
[1744716723163,0.04948666,132.47,132.46,7.55]
[1744716723462,0.04948666,132.47,132.44,0.05032591]
[1744716723855,0.04948666,132.47,132.45,7.5506]
[1744716724057,0.04948666,132.47,132.46,28.62]
[1744716724464,0.04948666,132.47,132.46,36.17]
[1744716724765,0.04948666,132.47,132.44,0.05032591]
[1744716724966,0.04948666,132.47,132.44,7.60112591]
[1744716725160,0.04948666,132.47,132.44,0.05032591]
[1744716726164,0.04948666,132.47,132.45,7.5503]
[1744716727567,0.04948666,132.47,132.44,0.05032591]
[1744716727568,0.04948666,132.47,132.46,7.55]
[1744716727868,0.04948666,132.47,132.44,0.05032591]
[1744716729067,7.5503,132.46,132.44,0.05032591]
[1744716729568,0.04948666,132.47,132.44,0.05032591]
[1744716730271,0.04948666,132.47,132.46,7.55]
[1744716730471,0.04948666,132.47,132.46,36.17]
[1744716730670,0.04948666,132.47,132.46,28.62]
[1744716731372,0.04948666,132.47,132.46,36.17]
[1744716731872,0.04948666,132.47,132.46,28.62]
[1744716732072,0.04948666,132.47,132.44,0.05032591]
[1744716732474,7.5504,132.46,132.44,0.05032591]
[1744716733070,7.59928666,132.47,132.44,7.60142591]
[1744716733271,0.04948666,132.47,132.44,7.60142591]
[1744716733775,0.04948666,132.47,132.44,0.05032591]
[1744716734273,0.04948666,132.47,132.45,7.5502]
[1744716734769,7.59898666,132.47,132.44,7.60102591]
[1744716735673,0.04948666,132.47,132.45,7.5505]
[1744716736173,0.04948666,132.47,132.44,0.05032591]
[1744716736777,0.04948666,132.47,132.46,7.55]
[1744716736976,30.5632,132.55,132.46,28.62]
[1744716737477,7.5471,132.52,132.48,7.5485]
[1744716737877,7.5471,132.52,132.46,28.62]
[1744716738078,7.5471,132.52,132.49,0.05739693]
[1744716738273,30.5632,132.55,132.49,7.60529693]
[1744716738773,7.5472,132.52,132.49,0.05739693]
[1744716739080,1.9432,132.55,132.49,0.05739693]
[1744716739376,7.5475,132.51,132.49,0.05739693]
[1744716740185,7.5469,132.52,132.49,0.05739693]
[1744716740370,1.9432,132.55,132.49,0.05739693]
[1744716740780,7.5477,132.5,132.49,0.05739693]
[1744716741380,40.23304549,132.5,132.42,28.62]
[1744716741577,40.23304549,132.5,132.43,7.5515]
[1744716741777,7.5498,132.47,132.42,28.62]
[1744716742083,7.5498,132.47,132.43,7.5514]
[1744716742380,0.05114839,132.46,132.44,0.04819209]
[1744716742580,0.05114839,132.46,132.44,7.59909209]
[1744716743475,0.05114839,132.46,132.45,7.5506]
[1744716743675,0.05114839,132.46,132.45,36.1706]
[1744716744284,7.548,132.5,132.47,7.5492]
[1744716744582,7.26037633,132.52,132.45,28.62]
[1744716744783,7.5488,132.49,132.46,7.5498]
[1744716745283,7.5488,132.49,132.46,7.59748521]
[1744716745477,7.548,132.5,132.46,0.04768521]
[1744716745682,28.62,132.53,132.46,0.04768521]
[1744716745882,28.62,132.53,132.46,7.30806154]
[1744716746182,7.5474,132.51,132.46,7.30806154]
[1744716747281,7.5474,132.51,132.49,7.5482]
[1744716747482,7.5474,132.51,132.49,7.60240135]
[1744716748081,7.5469,132.52,132.49,7.60240135]
[1744716748284,35.88037633,132.56,132.51,7.5468]
[1744716748484,35.88037633,132.56,132.48,28.62]
[1744716748685,7.546,132.53,132.52,0.05469261]
[1744716749078,36.166,132.53,132.52,9.261e-05]
[1744716750182,7.546,132.53,132.52,9.261e-05]
[1744716754987,7.54,132.53,132.45,28.62]
[1744716755186,7.26037633,132.51,132.42,35.86037633]
[1744716755383,39.92217633,132.52,132.42,35.86037633]
[1744716755581,7.5474,132.51,132.48,7.5488]
[1744716756289,0.04957256,132.51,132.48,0.04830932]
[1744716756591,0.04957256,132.51,132.5,7.5477]
[1744716757892,0.04957256,132.51,132.49,7.548]
[1744716758093,0.04957256,132.51,132.48,7.30868565]
[1744716758795,0.04957256,132.51,132.48,0.04830932]
[1744716759287,0.04957256,132.51,132.48,7.59710932]
[1744716760502,0.04957256,132.51,132.48,0.04830932]
[1744716760695,7.26037633,132.5,132.48,0.04830932]
[1744716760893,7.5483,132.49,132.48,0.04830932]
[1744716765106,7.26037633,132.5,132.42,4.039]
[1744716765405,7.26037633,132.47,132.4,28.6]
[1744716765608,7.5508,132.45,132.4,28.6]
[1744716766006,7.26037633,132.47,132.4,28.6]
[1744716766206,0.05796062,132.45,132.42,0.05378445]
[1744716767105,0.05796062,132.45,132.43,7.5513]
[1744716769507,0.05796062,132.45,132.42,0.05378445]
[1744716769899,0.05796062,132.45,132.44,7.5511]
[1744716771004,0.05796062,132.45,132.43,28.6]
[1744716772110,0.05796062,132.45,132.42,0.05378445]
[1744716772510,0.05796062,132.45,132.44,7.26037633]
[1744716772710,28.6,132.51,132.44,7.26037633]
[1744716772906,7.548,132.5,132.47,7.5492]
[1744716773400,7.548,132.5,132.44,7.26037633]
[1744716773813,0.05128985,132.48,132.47,7.5494]
[1744716780517,28.6,132.54,132.46,35.91694922]
[1744716780711,35.86037633,132.54,132.46,35.86037633]
[1744716780913,7.5469,132.52,132.49,7.5479]
[1744716781110,7.5469,132.52,132.46,35.86037633]
[1744716781415,7.5462,132.53,132.5,7.5474]
[1744716782018,7.5462,132.53,132.51,7.547]
[1744716782316,1.996,132.56,132.51,0.05415052]
[1744716782514,1.996,132.56,132.51,7.60105052]
[1744716782916,7.5457,132.54,132.51,7.60105052]
[1744716784120,35.86037633,132.57,132.51,0.05415052]
[1744716784613,7.5451,132.55,132.52,7.5463]
[1744716785214,7.5455,132.54,132.51,0.05415052]
[1744716785416,7.5455,132.54,132.51,7.60095052]
[1744716785615,7.5455,132.54,132.51,0.05415052]
[1744716786116,35.86037633,132.57,132.51,0.05415052]
[1744716786321,7.5451,132.55,132.52,7.5466]
[1744716786618,35.86037633,132.57,132.51,0.05415052]
[1744716786820,35.86037633,132.57,132.51,7.60085052]
[1744716787419,7.5454,132.55,132.51,7.60095052]
[1744716787814,7.26037633,132.55,132.51,0.05415052]
[1744716788019,7.5466,132.52,132.51,0.05415052]
[1744716794025,36.1064,132.53,132.51,0.05415052]
[1744716794525,28.56,132.56,132.51,0.05415052]
[1744716794722,28.56,132.56,132.49,34.5779]
[1744716794923,28.56,132.56,132.52,0.05193779]
[1744716795326,7.26037633,132.55,132.52,0.05193779]
[1744716795829,28.56,132.56,132.52,0.05193779]
[1744716796426,7.5452,132.55,132.52,0.05193779]
[1744716796829,28.56,132.56,132.52,0.05193779]
[1744716797028,7.5454,132.54,132.52,0.05193779]
[1744716798927,7.26037633,132.58,132.52,0.05193779]
[1744716799128,7.26037633,132.61,132.52,35.87231412]
[1744716799329,35.82037633,132.62,132.55,0.05816552]
[1744716799731,7.5431,132.59,132.56,7.5442]
[1744716800029,35.82037633,132.62,132.56,0.0544012]
[1744716800544,7.5434,132.58,132.56,0.0544012]
[1744716800731,7.26037633,132.6,132.56,0.0544012]
[1744716801031,28.56,132.59,132.56,0.0544012]
[1744716801231,7.26037633,132.58,132.5,2.1176]
[1744716801829,7.26037633,132.56,132.49,4.0442]
[1744716802028,35.82037633,132.56,132.49,4.0442]
[1744716802230,28.56,132.56,132.5,7.26037633]
[1744716802429,0.0544012,132.54,132.51,0.04956177]
[1744716802629,0.0544012,132.54,132.52,35.82037633]
[1744716802829,0.0544012,132.54,132.53,7.546]
[1744716803329,0.0544012,132.54,132.52,28.56]
[1744716803831,0.0544012,132.54,132.51,0.04956177]
[1744716804031,7.6001012,132.54,132.51,7.59626177]
[1744716804630,7.5461,132.53,132.51,0.04956177]
[1744716806036,7.26037633,132.64,132.52,35.82037633]
[1744716806338,4.003,132.63,132.55,7.26037633]
[1744716806531,9.5138,132.63,132.59,7.5425]
[1744716806731,177.95726878,132.65,132.57,35.82037633]
[1744716806925,7.5412,132.62,132.57,35.82037633]
[1744716807129,2.1439,132.64,132.6,0.05658253]
[1744716808238,7.5407,132.63,132.6,0.05658253]
[1744716808438,2.1439,132.64,132.6,0.05658253]
[1744716808838,7.5406,132.63,132.6,0.05658253]
[1744716809038,9.40427633,132.64,132.6,0.05658253]
[1744716809338,7.26037633,132.62,132.55,7.26037633]
[1744716809534,7.26037633,132.62,132.54,28.56]
[1744716809734,7.26037633,132.6,132.51,7.26037633]
[1744716809941,35.82037633,132.6,132.51,35.82037633]
[1744716810142,2.0411,132.59,132.51,35.82037633]
[1744716810341,7.5434,132.58,132.54,7.545]
[1744716810636,0.05354378,132.56,132.54,7.59560592]
[1744716810940,7.31392011,132.56,132.46,543.3]
[1744716811239,7.26037633,132.52,132.44,361.0031]
[1744716811440,7.5475,132.51,132.47,7.5491]
[1744716811841,7.548,132.5,132.46,7.5497]
[1744716812042,0.05614982,132.49,132.47,0.05631927]
[1744716812441,7.60474982,132.49,132.47,0.05631927]
[1744716812744,0.05614982,132.49,132.47,0.05631927]
[1744716812941,0.05614982,132.49,132.47,7.60541927]
[1744716813444,0.05614982,132.49,132.47,0.05631927]
[1744716813644,0.05614982,132.49,132.48,7.5489]
[1744716814441,28.56,132.54,132.47,0.05631927]
[1744716814442,28.56,132.54,132.5,7.5475]
[1744716814847,7.5463,132.53,132.5,7.5475]
[1744716815441,30.5531,132.57,132.47,13.73988755]
[1744716815743,1.9795,132.59,132.51,11.61238755]
[1744716816649,1.9795,132.59,132.55,7.5448]
[1744716816846,1.9795,132.59,132.56,0.05116733]
[1744716817046,7.5426,132.59,132.56,0.05116733]
[1744716817547,28.54,132.6,132.56,0.05116733]
[1744716817949,7.5437,132.57,132.56,0.05116733]
[1744716820558,40.15238755,132.6,132.56,0.05116733]
[1744716821048,7.5437,132.57,132.56,0.05116733]
[1744716822247,36.0837,132.57,132.56,6.733e-05]
[1744716822451,47.69238755,132.57,132.47,545.3275]
[1744716822651,11.61238755,132.55,132.47,545.3275]
[1744716822851,7.5486,132.49,132.46,28.54]
[1744716823646,7.60193187,132.49,132.46,28.59225132]
[1744716824043,0.05333187,132.49,132.46,28.59225132]
[1744716824451,0.05333187,132.49,132.48,7.5489]
[1744716824850,0.05333187,132.49,132.46,36.14205132]
[1744716825955,0.05333187,132.49,132.46,28.59225132]
[1744716826755,0.05333187,132.49,132.48,7.5489]
[1744716827258,0.05333187,132.49,132.47,7.5492]
[1744716827558,0.05333187,132.49,132.46,28.59225132]
[1744716827957,0.05333187,132.49,132.48,7.5489]
[1744716828655,28.54,132.54,132.5,7.5475]
[1744716828861,28.54,132.54,132.46,30.6786]
[1744716829058,7.5469,132.52,132.48,7.5483]
[1744716829260,7.5469,132.52,132.46,30.6786]
[1744716829762,7.5469,132.52,132.49,7.5481]
[1744716830054,7.5472,132.51,132.49,7.5481]
[1744716830360,28.54,132.54,132.48,0.05387012]
[1744716830660,7.5481,132.5,132.48,0.05387012]
[1744716831259,28.54,132.54,132.48,0.05387012]
[1744716831260,7.5483,132.49,132.48,0.05387012]
[1744716836365,47.71238755,132.49,132.4,571.72]
[1744716836566,11.61238755,132.47,132.4,571.72]
[1744716836757,7.551,132.45,132.41,7.5526]
[1744716836963,7.551,132.45,132.4,571.72]
[1744716837364,0.05431555,132.44,132.42,7.552]
[1744716837563,0.05431555,132.44,132.4,571.72]
[1744716837763,0.05431555,132.44,132.42,0.05664431]
[1744716838968,0.05431555,132.44,132.42,7.60864431]
[1744716839169,0.05431555,132.44,132.42,0.05664431]
[1744716839572,0.05431555,132.44,132.43,7.5517]
[1744716840873,0.05431555,132.44,132.42,7.60864431]
[1744716841171,0.05431555,132.44,132.42,0.05664431]
[1744716841470,0.05431555,132.44,132.42,7.60864431]
[1744716843467,28.56,132.49,132.42,7.31894603]
[1744716843670,28.56,132.49,132.43,28.56]
[1744716844074,7.5495,132.47,132.45,7.5503]
[1744716844375,30.6608,132.52,132.44,7.26230172]
[1744716844574,28.56,132.52,132.47,0.05622179]
[1744716845676,7.5489,132.48,132.47,0.05622179]
[1744716846585,7.5489,132.48,132.41,4.2274]
[1744716846586,35.80230172,132.49,132.39,28.54]
[1744716846782,7.26230172,132.46,132.37,2.0251]
[1744716847071,7.26230172,132.44,132.37,2.0251]
[1744716847277,35.80230172,132.46,132.37,2.0251]
[1744716847571,7.5527,132.42,132.37,2.0251]
[1744716847778,7.5527,132.42,132.4,0.05782701]
[1744716848079,0.05293593,132.43,132.4,0.05782701]
[1744716848376,7.5529,132.41,132.4,0.05782701]
[1744716848576,0.05293593,132.43,132.4,0.05782701]
[1744716849478,7.5525,132.42,132.4,0.05782701]
[1744716852183,0.05293593,132.43,132.4,0.05782701]
[1744716852379,0.05293593,132.43,132.4,28.61782701]
[1744716852580,11.6253682,132.53,132.41,11.6253682]
[1744716852779,7.5488,132.49,132.46,7.5496]
[1744716852981,32.7424,132.52,132.44,2.0486]
[1744716853478,7.5491,132.48,132.45,7.5501]
[1744716853678,7.5491,132.48,132.45,0.05134271]
[1744716853874,7.5491,132.48,132.46,7.55]
[1744716854181,7.5494,132.47,132.45,0.05134271]
[1744716854581,7.5494,132.47,132.45,7.60164271]
[1744716854886,7.5492,132.48,132.45,0.05134271]
[1744716855078,32.7424,132.52,132.45,0.05134271]
[1744716855278,32.7424,132.52,132.46,36.1095]
[1744716855480,7.5487,132.49,132.48,0.05046736]
[1744716860082,7.5498,132.47,132.44,2.0486]
[1744716860288,11.6253682,132.51,132.44,2.0486]
[1744716860586,11.6253682,132.51,132.45,7.5506]
[1744716861182,0.05321072,132.49,132.47,0.04850706]
[1744716861793,7.5489,132.48,132.47,0.04850706]
[1744716862088,0.05321072,132.49,132.47,0.04850706]
[1744716862887,7.5489,132.48,132.47,0.04850706]
[1744716867189,47.7053682,132.48,132.34,359.0]
[1744716867395,11.6253682,132.45,132.34,359.0]
[1744716867596,28.54,132.44,132.34,359.0]
[1744716868094,7.5533,132.41,132.34,359.0]
[1744716868298,0.05776066,132.4,132.38,0.05116484]
[1744716868498,7.554,132.39,132.38,0.05116484]
[1744716868796,0.05776066,132.4,132.38,0.05116484]
[1744716869195,7.61176066,132.4,132.38,0.05116484]
[1744716869396,0.05776066,132.4,132.38,0.05116484]
[1744716869797,7.554,132.39,132.38,0.05116484]
[1744716871499,0.05776066,132.4,132.38,0.05116484]
[1744716872699,7.554,132.39,132.38,0.05116484]
[1744716874000,7.61146066,132.4,132.38,0.05116484]
[1744716874302,0.05776066,132.4,132.38,0.05116484]
[1744716874598,7.554,132.39,132.38,0.05116484]
[1744716877600,7.56,132.39,132.27,359.0]
[1744716877803,7.26967377,132.35,132.27,28.54]
[1744716878103,7.26967377,132.33,132.24,41.86427377]
[1744716878300,28.54,132.32,132.27,7.5608]
[1744716878498,28.54,132.32,132.26,7.26967377]
[1744716878699,7.5592,132.3,132.28,0.05485804]
[1744716879199,7.61224395,132.31,132.28,0.05485804]
[1744716879400,0.05344395,132.31,132.28,0.05485804]
[1744716880006,0.05344395,132.31,132.28,7.61465804]
[1744716880305,0.05344395,132.31,132.28,0.05485804]
[1744716881807,0.05344395,132.31,132.29,7.5596]
[1744716882602,7.61204395,132.31,132.28,7.61485804]
[1744716882804,0.05344395,132.31,132.28,0.05485804]
[1744716883105,0.05344395,132.31,132.29,7.5597]
[1744716883607,0.05344395,132.31,132.28,7.32453181]
[1744716883900,36.0965,132.35,132.3,7.26967377]
[1744716884104,7.5565,132.35,132.3,35.82967377]
[1744716884304,7.556,132.36,132.33,7.5573]
[1744716884506,28.56,132.38,132.32,7.26967377]
[1744716884704,7.5556,132.37,132.34,7.5566]
[1744716884900,0.05210362,132.37,132.34,7.32528332]
[1744716885307,0.05210362,132.37,132.36,7.5557]
[1744716885607,0.05210362,132.37,132.36,36.1157]
[1744716890213,7.5537,132.4,132.37,7.5547]
[1744716890513,28.56,132.47,132.38,11.62691985]
[1744716890712,28.56,132.47,132.4,7.5533]
[1744716890914,11.62691985,132.46,132.4,7.5533]
[1744716891415,0.04832749,132.44,132.42,0.04915816]
[1744716892113,7.5519,132.43,132.42,0.04915816]
[1744716892416,28.56,132.43,132.36,28.56]
[1744716893010,13.59541985,132.42,132.36,28.56]
[1744716893210,7.5538,132.4,132.37,7.5551]
[1744716893411,0.0538226,132.4,132.38,0.04834643]
[1744716894814,0.0538226,132.4,132.27,359.0]
[1744716895112,7.5577,132.33,132.29,7.5594]
[1744716895316,28.56,132.36,132.28,2.0046]
[1744716895519,30.5941,132.36,132.28,2.0046]
[1744716895815,32.6559,132.36,132.28,2.0046]
[1744716896019,7.5583,132.32,132.31,0.05681495]
[1744716901315,40.24507192,132.33,132.25,28.56]
[1744716901517,40.18691985,132.33,132.25,28.56]
[1744716902319,7.5606,132.28,132.25,28.56]
[1744716902717,7.5606,132.28,132.25,28.61465878]
[1744716902909,7.5599,132.29,132.25,36.17635878]